Cogmind - Beta 15 @@@ ROGUE MODE // 2025.05.11 @ 23:32:16 Player: GR4C3 Result: Destroyed by G-50 Soldier with Heavy Laser Performance ------------- Evolutions (4) 2000 Regions Visited (5) 1000 Robots Destroyed (42) 210 Value Destroyed (1645) 1645 Prototype IDs (1) 20 Alien Tech Used (0) 0 Bonus (534) 534 TOTAL SCORE: 5409 Bonus ------- Follower Combat Kills 234 Registered with UFD 300 Cogmind --------- Core Integrity 0/850 Matter 87/300 Energy 100/100 System Corruption 5% Temperature Cool (9) Movement Walking (120) Location -6/Extension Parts ------- > --- POWER (2) -------- (None) > --- PROPULSION (5) --- Improved Medium Treads Flexi-carbon Leg Flexi-carbon Leg > --- UTILITY (5) ------ Enhanced Optical Array Signal Interpreter Advanced Terrain Scanner Improved Hacking Suite > --- WEAPON (3) ------- Plasma Cannon Flak Gun > --- INVENTORY (5) ---- Improved Heat Sink Melee Analysis Suite Gauss Rifle Ripper Peak State ------------ > --- POWER ------------ Improved Deuterium Engine Improved Deuterium Engine > --- PROPULSION ------- Light Treads Improved Medium Treads Carbon-fiber Leg Flexi-carbon Leg Flexi-carbon Leg > --- UTILITY ---------- Enhanced Optical Array Signal Interpreter Advanced Terrain Scanner Advanced Targeting Computer Improved Hacking Suite > --- WEAPON ----------- Gauss Rifle Flak Gun Heavy Machine Gun > --- INVENTORY -------- Improved Heat Sink Melee Analysis Suite Arc Projector Plasma Cannon Ripper [Rating: 60] Favorites ----------- Power Ion Engine Engine Ion Engine Power Core Light Nuclear Core Reactor Light Antimatter Reactor Propulsion Carbon-fiber Leg Treads Light Treads Leg Carbon-fiber Leg Wheel Wheel Hover Unit Improved Hover Unit Utility Signal Interpreter Device Sensor Array Processor Signal Interpreter Hackware Improved Hacking Suite Protection Core Shielding Weapon Improved Assault Rifle Energy Gun Plasma Rifle Energy Cannon Plasma Cannon Ballistic Gun Improved Assault Rifle Slashing Weapon Chainsword Build | -11 -10 -10 -9 -6 -6 ------- Run | Yrd Mat Sub Scr Fac Ext Slots Evolved 8 | . . . . 8 . Power 1 | . . . . 1 . Propulsion 3 | . . . . 3 . Utility 3 | . . . . 3 . Weapon 1 | . . . . 1 . Parts Attached 67 | 8 5 1 3 31 19 Power 10 | 1 . . . 7 2 Engine 6 | 1 . . . 3 2 Core 3 | . . . . 3 . Reactor 1 | . . . . 1 . Propulsion 20 | 3 . 1 1 7 8 Treads 5 | . . . . 1 4 Leg 10 | . . . . 6 4 Wheel 4 | 3 . 1 . . . Hover 1 | . . . 1 . . Flight . | . . . . . . Utility 15 | 2 1 . 2 9 1 Device 8 | 2 1 . 1 3 1 Storage . | . . . . . . Processor 5 | . . . 1 4 . Hackware 1 | . . . . 1 . Protection 1 | . . . . 1 . Artifact . | . . . . . . Weapon 22 | 2 4 . . 8 8 Energy Gun 8 | 1 1 . . 4 2 Energy Cannon 1 | . . . . . 1 Ballistic Gun 12 | 1 3 . . 3 5 Ballistic Cannon . | . . . . . . Launcher . | . . . . . . Special Weapon . | . . . . . . Impact Weapon . | . . . . . . Slashing Weapon 1 | . . . . 1 . Piercing Weapon . | . . . . . . Special Melee Weapon . | . . . . . . Unidentified Prototypes 1 | . 1 . . . . Parts Lost 34 | . . . . 20 14 Power 8 | . . . . 5 3 Propulsion 10 | . . . . 6 4 Utility 4 | . . . . 3 1 Weapon 12 | . . . . 6 6 Highest Loss Streak 8 | . . . . 8 7 To Critical Strikes 1 | . . . . . 1 Average Backups 4 | 1 5 5 5 3 2 Power . | . . . . . . Propulsion . | . 1 . . . . Utility 1 | . 2 3 2 1 1 Weapon 2 | 1 1 2 2 2 1 Tool/Special . | . . . . . . Unused Backups 12 | 2 3 1 1 1 4 Power . | . . . . . . Propulsion 4 | 2 2 . . . . Utility 6 | . 1 . 1 1 3 Weapon 2 | . . 1 . . 1 Tool/Special . | . . . . . . Average Slot Usage (%) 79 | . 100 96 85 73 74 Engine 8 | . 14 14 14 3 4 Core 1 | . . . . 1 2 Reactor 1 | . . . . 3 . Treads 1 | . . . . . 6 Leg 6 | . . . . 13 7 Wheel 2 | . 28 24 . . . Hover 4 | . . . 13 . . Device 12 | . 28 28 14 9 6 Processor 15 | . . . 13 20 19 Hackware 1 | . . . . . 6 Energy Gun 3 | . 12 . . 6 3 Ballistic Gun 17 | . 16 28 28 8 11 Slashing Weapon 1 | . . . . 2 2 Peak Build Rating 60 | 9 13 14 12 52 60 Average Rating 26 | 4 10 13 11 38 40 On Entrance 13 | . 9 13 12 12 36 Naked Turns . | . . . . . . Heaviest Build 40 | 10 13 13 13 40 37 Greatest Support 61 | 26 20 30 10 61 60 Greatest Overweight (x) 3 | 1 . 1 1 3 3 Average Overweight (x) . | . . . 1 . . Largest Inventory Capacity 5 | 5 5 5 5 5 5 Average Capacity 5 | 5 5 5 5 5 5 Most Carried 5 | 5 5 5 5 5 5 Average Carried 4 | 1 4 5 4 3 2 Final Capacity 5 | 5 5 5 5 5 5 Final Carried 5 | 5 5 5 5 1 4 Class Distribution -------------------- 64% | Mutant 24% | Scavenger-Skirmisher 5% | Skirmisher 3% | Scavenger-Assassin Dominant Class ---------------- Mutant | -10/Materials Mutant | -10/Subcaves Mutant | -9/Scraptown Scavenger-Skirmisher | -6/Factory Scavenger-Skirmisher | -6/Extension Resources | -11 -10 -10 -9 -6 -6 ----------- Run | Yrd Mat Sub Scr Fac Ext Matter Collected 1384 | 295 18 40 20 571 440 Remotely . | . . . . . . Salvage Created 2433 | 86 . . . 1302 1045 Parts 94 | 6 . . . 45 43 Haulers Intercepted . | . . . . . . Recyclers Shooed 3 | . . . . 3 . Parts Field Recycled . | . . . . . . Retrieved Matter . | . . . . . . Parts Self-Destructed 6 | . . 6 . . . Prevented . | . . . . . . Kills | -11 -10 -10 -9 -6 -6 ------- Run | Yrd Mat Sub Scr Fac Ext Combat Hostiles Destroyed 32 | . . . . 19 13 Melee 6 | . . . . 5 1 Guns 22 | . . . . 12 10 Cannons 2 | . . . . . 2 AOE 1 | . . . . 1 . Classes Destroyed 13 | 2 . . . 5 6 Builder 1 | . . . . 1 . Tunneler 2 | 1 . . . 1 . Recycler 6 | 1 . . . 3 2 Watcher 1 | . . . . . 1 Swarmer 5 | . . . . 4 1 Cutter 2 | . . . . 2 . Grunt 12 | . . . . 10 2 Brawler 1 | . . . . . 1 Duelist 2 | . . . . . 2 Sentry 5 | . . . . . 5 Hunter 1 | . . . . . 1 Programmer 3 | . . . . 3 . Behemoth 1 | . . . . . 1 Best Kill Streak 5 | 2 . . . 5 3 Combat Bots Only 4 | . . . . 4 3 Max Kills in Single Turn 1 | 1 . . . 1 1 Gunslinging . | . . . . . . Exploded 1 | . . . . 1 . Melee 1 | . . . . 1 1 Uniques/NPCs Destroyed 1 | . . . . . 1 A7 (-6/Extension) Combat | -11 -10 -10 -9 -6 -6 -------- Run | Yrd Mat Sub Scr Fac Ext Hostile Shots Fired 426 | . . . . 183 243 Missed 133 | . . . . 56 77 Hits 293 | . . . . 127 166 Melee 26 | . . . . 8 18 Projectile 267 | . . . . 119 148 AOE 2 | . . . . 2 . Critical Strikes 9 | . . . . 5 4 Actively Blocked 1 | . . . . 1 . Damage Taken 4815 | . 5 . . 2609 2201 Core 866 | . . . . 403 463 Absorbed by Shields 30 | . . . . . 30 Redirected to Shielding 51 | . . . . 51 . Regen/Repaired (Parts) 4 | . . . 4 . . Core Remaining (%) 100 | 100 . . 100 . . Volleys Fired 139 | 5 . . . 60 74 Largest 3 | 2 . . . 3 3 Hottest 165 | 60 . . . 150 165 Shots Fired 293 | 10 . . . 126 157 Gun 277 | 10 . . . 126 141 Cannon 16 | . . . . . 16 Launcher . | . . . . . . Special . | . . . . . . Kinetic 192 | 5 . . . 67 120 Thermal 86 | 5 . . . 53 28 Explosive . | . . . . . . Electromagnetic 15 | . . . . 6 9 Robot Hit Streak 13 | 3 . . . 9 13 Robot Miss Streak 7 | 1 . . . 3 7 Penetration Max 1 | . . . . . 1 Secondary Targets 4 | . . . . 3 1 Max Gunslinging Chain 1 | . . . . 1 1 Shots Hit Robots 234 | 6 . . . 109 119 Core Hits 146 | 3 . . . 50 93 Critical Kills . | . . . . . . Critical Parts Destroyed 1 | . . . . . 1 Critical Strikes 7 | . . . . 6 1 Burn 5 | . . . . 5 . Destroy 1 | . . . . . 1 Sever 1 | . . . . 1 . Melee Attacks 18 | . . . . 17 1 Impact . | . . . . . . Slashing 18 | . . . . 17 1 Piercing . | . . . . . . Sneak Attacks 4 | . . . . 4 . Combat Hostiles . | . . . . . . Follow-up Attacks . | . . . . . . Damage Inflicted 5066 | 74 11 . . 2545 2436 Guns 3982 | 74 . . . 1779 2129 Cannons 252 | . . . . . 252 Explosions 47 | . . . . 47 . Melee 745 | . . . . 704 41 Ramming 40 | . 11 . . 15 14 Kinetic 2756 | 50 . . . 850 1856 Thermal 1336 | 24 . . . 875 437 Explosive 47 | . . . . 47 . Electromagnetic 142 | . . . . 54 88 Impact . | . . . . . . Slashing 745 | . . . . 704 41 Piercing . | . . . . . . Highest Corruption 5 | . 5 5 . 2 5 Average Corruption 2 | . 5 5 . 1 2 Corruption Purged . | . . . . . . Corruption Blocked . | . . . . . . Effects 23 | . . 5 . 4 14 Message Errors 8 | . . 1 . 3 4 Matter Fused 2 | . . . . . 2 Heat Flow Errors 2 | . . 1 . . 1 Energy Discharges 5 | . . 2 . 1 2 Data Loss (minor) 2 | . . 1 . . 1 Data Loss (major) 1 | . . . . . 1 Misfires 1 | . . . . . 1 Alerts 2 | . . . . . 2 Overload Shots . | . . . . . . Overflow Damage 36 | . . . . 36 . Projectiles . | . . . . . . Explosions . | . . . . . . Melee 36 | . . . . 36 . Knockbacks . | . . . . . . Impact . | . . . . . . Kinetic . | . . . . . . Secondary . | . . . . . . Self-Inflicted Damage 93 | . 5 . . 88 . Shots 1 | . . . . 1 . Rammed 1 | . 1 . . . . Targets Rammed 5 | . 1 . . 3 1 Kicked 4 | . . . . 3 1 Crushed . | . . . . . . Highest Temperature 285 | . . 105 . 270 285 Average Temperature 85 | . . 65 . 88 81 Received Heat Transfer 1237 | . . . . 744 493 Siege Activations . | . . . . . . Martial Activations . | . . . . . . Shielding Activations . | . . . . . . Robots Disrupted 1 | . . . . . 1 Combat Hostiles 1 | . . . . . 1 Robots Corrupted . | . . . . . . Combat Hostiles . | . . . . . . Parts Fried . | . . . . . . Impact Corruptions . | . . . . . . Robots Melted 2 | . . . . 2 . Combat Hostiles 1 | . . . . 1 . Parts Melted 11 | . . . . 11 . Heat Transferred 3322 | 50 . . . 2374 898 Parts Sabotaged . | . . . . . . Parts Stolen . | . . . . . . Parts Stripped . | . . . . . . Power Chain Reactions . | . . . . . . Alert | -11 -10 -10 -9 -6 -6 ------- Run | Yrd Mat Sub Scr Fac Ext Maximum Alert Level 1 | . . . . 1 . Low Security (%) 91 | 100 100 . . 83 100 Level 1 8 | . . . . 16 . Level 2 . | . . . . . . Level 3 . | . . . . . . Level 4 . | . . . . . . Level 5 . | . . . . . . High Security . | . . . . . . Max Security . | . . . . . . Peak Influence 295 | 10 . . . 295 192 Initial 131 | . . . . . 131 Average 54 | 1 . . . 66 50 Influence Increases 1180 | 10 . . . 609 561 Destroy 0b10 Robot/C 740 | . . . . 380 360 Destroy 0b10 Robot/NC 55 | 10 . . . 25 20 Destroy Leader 132 | . . . . 70 62 Allied During Kill 20 | . . . . . 20 Successful Hack 20 | . . . . . 20 Disable Machine 30 | . . . . 15 15 Destroy Structure 18 | . . . . 14 4 Lose Combat Pursuer 165 | . . . . 105 60 Influence Decreases 988 | 10 . . . 340 638 Entered New Map 138 | . . . . . 138 Time Decay 598 | 10 . . . 240 348 Lost Part 194 | . . . . 100 94 Lost Ally 58 | . . . . . 58 Squads Dispatched 11 | . 2 . . 7 2 Investigation 1 | . 1 . . . . Extermination 3 | . . . . 3 . Reinforcement 6 | . 1 . . 3 2 Assault . | . . . . . . Garrison 1 | . . . . 1 . Intercept . | . . . . . . Searches Triggered . | . . . . . . Construction Impeded 1 | . . . . . 1 Haulers Reinforced . | . . . . . . Active Scanning Responses . | . . . . . . Cargo Convoy Interrupts . | . . . . . . Stealth | -11 -10 -10 -9 -6 -6 --------- Run | Yrd Mat Sub Scr Fac Ext Distress Signals 6 | . . . . 2 4 Communications Jammed . | . . . . . . Distress Signals . | . . . . . . Times Spotted 72 | . 1 1 . 42 28 Peak Tracking Total 11 | . 1 1 . 7 11 Tactical Retreats 8 | . . . . 7 1 Traps | -11 -10 -10 -9 -6 -6 ------- Run | Yrd Mat Sub Scr Fac Ext Traps Triggered 4 | . . . . 2 2 Indirectly . | . . . . . . Trap Hack Attempts . | . . . . . . Triggered . | . . . . . . Disarmed . | . . . . . . Reprogrammed . | . . . . . . Reused . | . . . . . . Traps Extracted . | . . . . . . Installed . | . . . . . . Triggered . | . . . . . . Machines | -11 -10 -10 -9 -6 -6 ---------- Run | Yrd Mat Sub Scr Fac Ext Machines Disabled 2 | . . . . 1 1 Max in Single Turn 1 | . . . . 1 1 Machines Repaired . | . . . . . . Machines Dismantled . | . . . . . . Machines Sabotaged . | . . . . . . Overloaded Fab Kills . | . . . . . . Hacking | -11 -10 -10 -9 -6 -6 --------- Run | Yrd Mat Sub Scr Fac Ext Machines Accessed 11 | . . . . 2 9 Terminals 11 | . . . . 2 9 Fabricators . | . . . . . . Repair Stations . | . . . . . . Recycling Units . | . . . . . . Scanalyzers . | . . . . . . Garrison Access . | . . . . . . Total Hacks 14 | . . . . 3 11 Successful 6 | . . . . 1 5 Failed 8 | . . . . 2 6 Catastrophic 1 | . . . . . 1 Database Lockouts . | . . . . . . Manual . | . . . . . . Terminals 14 | . . . . 3 11 Fabricators . | . . . . . . Repair Stations . | . . . . . . Recycling Units . | . . . . . . Scanalyzers . | . . . . . . Garrison Access . | . . . . . . Terminal Hacks 6 | . . . . 1 5 Record 1 | . . . . 1 . Open Door 4 | . . . . . 4 Assault Status 1 | . . . . . 1 Fabricator Hacks . | . . . . . . Repair Station Hacks . | . . . . . . Recycling Unit Hacks . | . . . . . . Scanalyzer . | . . . . . . Garrison Access Hacks . | . . . . . . Unauthorized Hacks . | . . . . . . Terminals . | . . . . . . Fabricators . | . . . . . . Repair Stations . | . . . . . . Recycling Units . | . . . . . . Scanalyzers . | . . . . . . Garrison Access . | . . . . . . Data Cores Recovered . | . . . . . . Used . | . . . . . . Hacking Detections 3 | . . . . 1 2 Full Trace Events . | . . . . . . Feedback Events . | . . . . . . Feedback Blocked . | . . . . . . Robot Schematics Acquired . | . . . . . . Robots Built . | . . . . . . Authchips . | . . . . . . Time . | . . . . . . Total Robot Build Rating . | . . . . . . Part Schematics Acquired . | . . . . . . Parts Built . | . . . . . . Authchips . | . . . . . . Time . | . . . . . . Total Part Build Rating . | . . . . . . Parts Repaired . | . . . . . . Time . | . . . . . . Parts Recycled . | . . . . . . Recycled Matter . | . . . . . . Retrieved Matter . | . . . . . . Retrieved Components . | . . . . . . Parts Scanalyzed . | . . . . . . Part Schematics Acquired . | . . . . . . Parts Damaged . | . . . . . . Bothacking | -11 -10 -10 -9 -6 -6 ------------ Run | Yrd Mat Sub Scr Fac Ext Used RIF Installer . | . . . . . . Robots Hacked . | . . . . . . Non-combat . | . . . . . . Combat . | . . . . . . Robot Hacks Applied . | . . . . . . Relay Couplers Released . | . . . . . . Fabnet Peak Effective % . | . . . . . . Robots Rewired . | . . . . . . Allies Hacked . | . . . . . . Hacks Repelled . | . . . . . . Allies | -11 -10 -10 -9 -6 -6 -------- Run | Yrd Mat Sub Scr Fac Ext Total Allies 5 | . . . . . 5 Largest Group 4 | . . . . . 4 Highest-Rated Group 198 | . . . . . 198 Highest-Rated Ally 159 | . . . . . 159 Total Orders . | . . . . . . Ally Attacks 44 | . . . . . 44 Total Damage 897 | . . . . . 897 Kills 7 | . . . . . 7 Allies Corrupted . | . . . . . . Allies Melted . | . . . . . . Intel | -11 -10 -10 -9 -6 -6 ------- Run | Yrd Mat Sub Scr Fac Ext Active Infowar (turns) 4579 | 22 135 256 1645 1404 1117 Optics 2520 | . . . . 1403 1117 Sensors 2963 | . 62 256 1645 1000 . Terrain 1803 | 22 135 256 19 441 930 Structural 85 | . . . 85 . . Seismic 93 | 21 72 . . . . ECM 578 | . . . . 578 . Robot Analysis Total . | . . . . . . Derelict Logs Recovered 2 | . . 2 . . . Drone Launches . | . . . . . . Drone Recoveries . | . . . . . . Exploration | -11 -10 -10 -9 -6 -6 ------------- Run | Yrd Mat Sub Scr Fac Ext Turns Passed 4711 | 92 135 256 1645 1439 1144 Spaces Moved 3153 | 67 143 250 1369 795 529 Core 43 | 23 . . . 15 5 Treads 156 | . . . . 5 151 Legs 1055 | . . . . 682 373 Wheels 473 | 44 143 250 36 . . Hover 1426 | . . . 1333 93 . Flight . | . . . . . . Fastest Speed 50 | 50 80 80 95 120 100 Average Speed 123 | 80 80 91 119 125 162 Slowest Speed 260 | 100 80 95 120 260 260 Overloaded Moves . | . . . . . . Propulsion Burnouts . | . . . . . . Robots Hopped . | . . . . . . Potential Cave-ins . | . . . . . . Cave-ins Triggered . | . . . . . . Exploration Rate (%) 36 | 4 24 27 88 20 56 Regions Visited 5 Branch Regions 3 Pre-discovered Areas . | . . . . . . Known Exits Taken 2 | . . . 1 1 . Unknown Exits Taken 3 | 1 1 1 . . . Scrap Searched 3 | . . . 3 . . Spaces Dug . | . . . . . . Terrain Destroyed 13 | . . . . 13 . Melee . | . . . . . . Projectile . | . . . . . . AOE 13 | . . . . 13 . Terrain Rammed . | . . . . . . Walls Destroyed . | . . . . . . Machines Disabled . | . . . . . . Actions | -11 -10 -10 -9 -6 -6 --------- Run | Yrd Mat Sub Scr Fac Ext Total 3708 | 95 166 279 1381 1101 686 Wait 211 | . 1 25 3 152 30 Move 3148 | 66 142 249 1368 794 529 Hop . | . . . . . . Pick Up 63 | 14 7 1 2 24 15 Fast Attach 14 | . 2 . 3 6 3 Attach 44 | 7 . . . 27 10 Detach 2 | . . . . 2 . Swap 21 | 1 3 1 . 9 7 Drop 33 | 2 10 3 5 7 6 Fire 139 | 5 . . . 60 74 Melee 18 | . . . . 17 1 Ram 1 | . 1 . . . . Kick 4 | . . . . 3 1 Crush . | . . . . . . Escape Stasis 10 | . . . . . 10 Rewire . | . . . . . . Trap . | . . . . . . Miscellaneous . | . . . . . . Route ------- -11/Scrapyard -10/Materials (discovered 2 exits: [*Mat] / [*Sub]) -10/Subcaves (discovered 3 exits: [*Mat] / Rec / *Scr) -9/Scraptown (discovered 2 exits: *Fac x2) -6/Factory -6/Extension History --------- Turn | Location | Event 7 | -11/Scrapyard | Discovered new exit (range 15) 93 | -11/Scrapyard | Entered Materials 94 | -10/Materials | Met a group of wandering Federalists 182 | -10/Materials | Discovered new exit (range 10) 226 | -10/Materials | Discovered new exit (range 4) 228 | -10/Materials | Entered Subcaves 229 | -10/Subcaves | Continued accompanying wandering Federalists (4) 230 | -10/Subcaves | Identified exit to Recycling 233 | -10/Subcaves | Learned Materials emergency access door positions 306 | -10/Subcaves | Build established: Mutant 393 | -10/Subcaves | Shifting Twisted Machinery released Barrage Gun 395 | -10/Subcaves | Shifting Twisted Machinery released Sub. Beam Cannon 439 | -10/Subcaves | Discovered new exit (range 15) 476 | -10/Subcaves | Wandering Federalist uncovered a shortcut to Scraptown 484 | -10/Subcaves | Entered Scraptown 484 | -9/Scraptown | System corruption cleaned by C-Scrubber 866 | -9/Scraptown | Visited Assassins FH 892 | -9/Scraptown | Visited CR-KLE's Repair Center 901 | -9/Scraptown | CR-KLE repaired 1 part 920 | -9/Scraptown | Visited IN-MT5's Study 963 | -9/Scraptown | Heard Great Nut preacher, LISTEN AND RECITE! 1001 | -9/Scraptown | Discovered new exit (range 11) 1327 | -9/Scraptown | Visited Comm Corps 1384 | -9/Scraptown | Visited The Evicted 1428 | -9/Scraptown | Visited UFD Registry 1468 | -9/Scraptown | Visited Fellowship of the Rings 1527 | -9/Scraptown | Visited Shadow of the Wyrm 1599 | -9/Scraptown | Registered with UFD as "Wavetalker" 1631 | -9/Scraptown | Visited Scrapoid Research Area 1669 | -9/Scraptown | Visited Scrapoid Pod Storage 1723 | -9/Scraptown | Visited Curators Association 2009 | -9/Scraptown | Visited Chapter 10 2125 | -9/Scraptown | Discovered new exit (range 3) 2128 | -9/Scraptown | Identified exit to Factory 2129 | -9/Scraptown | Entered Factory 2129 | -6/Factory | Evolved 8 slots: Power x1, Propulsion x3, Utility x3, Weapon x1 2404 | -6/Factory | Garrison activated, responded to threat 2705 | -6/Factory | Build established: Scavenger-Skirmisher 3082 | -6/Factory | Discovered new exit (range 13) 3180 | -6/Factory | Lost 8 parts (2p2n2u2w) 3416 | -6/Factory | Lost 3 parts (2n1w) 3566 | -6/Factory | Identified exit to Extension 3568 | -6/Factory | Entered Extension 3593 | -6/Extension | Build established: Mutant 3770 | -6/Extension | Spotted B-75 Beast 4028 | -6/Extension | Core integrity fell below 50% 4094 | -6/Extension | Core integrity fell below 20% 4121 | -6/Extension | Lost 7 parts (1p2n4w) 4256 | -6/Extension | Rescued a captive Derelict 4256 | -6/Extension | Rescued a captive Derelict 4337 | -6/Extension | Rescued a captive Derelict 4365 | -6/Extension | Rescued a captive Derelict 4382 | -6/Extension | Build established: Scavenger-Skirmisher 4424 | -6/Extension | Lost 3 allies 4428 | -6/Extension | Rescued A7 4459 | -6/Extension | Spotted B-75 Beast 4473 | -6/Extension | Allies destroyed B-75 Beast 4487 | -6/Extension | Destroyed B-75 Beast 4489 | -6/Extension | Allies destroyed A7 4491 | -6/Extension | Extracted ID and sensor layout for unrecognized location from A7's data core 4593 | -6/Extension | Disrupted transfer network 4712 | -6/Extension | Destroyed by G-50 Soldier with Heavy Laser Last Messages --------------- 04672_ PWQUMO6J25X9RK>E/YV/ZZ 04681_ C-30 ARC bursts open, deploying its payload. 04681_ S-27 Virus unfolds itself. 04682_ Acquired 2 matter. 04683_ Kicked A-15 Conveyor. 04683_ Imp. Deuterium Engine destroyed. 04686_ C-30 ARC bursts open, deploying its payload. 04686_ B-48 Gladiator unfolds itself. 04686_ G-50 Soldier unfolds itself. 04687_ Hvy. Machine Gun destroyed. 04690_ L-41 Fighter destroyed. 04694_ Flexi-carbon Leg destroyed. 04695_ Destroyed VTOL Module. 04697_ S-27 Virus destroyed. 04709_ Critical hit (Smash). 04709_ Adv. Targeting Computer destroyed. 04709_ System corrupted by crushing effect (+3). 04711_ B-48 Gladiator destroyed. Map ----- +----------------------------------------------------+ | ##?????????????????????#???#?????????????????????? | | ############???#???????????????#????????????????? | | #????????????????????????????????????? | | ###### #T###?#?????####?????????????????????????? | | ###???# ###?#??#????# #????????#????????? ??????? | | #???#?#%#?#??#?????## ##???#?????????????????????? | | #?????#!#?????#????#T% ##????????????????????????? | | #####?#!#############+#####??????????????????????? | | ### [[!%[%% ![%%==* #??#???????????????????? | | """ #?################ #??????????? ??????????? | | T" #??????#?????????# #??????????????????????? | | """ #?#??????????????# #??????????????????????? | | #????????????????# #?????#??????? ????????? | | !#?#??#???????????# #??????????????????????? | | T####???####?##?#????# u#??????????????????????? | | ##?#??##?#????#????#?# #????????? ???? ???????? | | ??#????#???????#?##### #???#??#?? ? ??????????? | | ?????#??#?????????# #??????#?? ????????????? | | ??????#?#?????????# #????????? ????????????? | | ????#?#?#????#??#?# #????#?#?# #??#????????? | | #???#??##?????????# #??????### #???????????? | | #??#?#???????###?## #????????# #?#?????????? | | ???????##????###??# %/#???#????# #???????????? | | ?##?##?##????????## %!#????????# ##??????????? | | ??#?????#?#??#??#?#######!#??#????## #???????????? | | ??#?????????#??????#????#@#????????# #???#???????? | | #?#?#?#??##??##????#????#%#####????# #???????????? | | ??????#??##?????????????#=# ######?# ##??????????? | | ????#??#??#???????????###%### ## ### ###????#????? | | ###??????#???????????## %g/ "" ""#?????????? | | #?#????#?#??#?????### =! " " #?????????? | | #???#?????????????### % #?????????? | | ##?#????????????????# % #????#????? | | +###################### % ########### | | % ] | | % =* | | % % !%! = | | !%= [!= =%! | | % ! % | | ####################### ########### | | ??????????????????????# ##????????? | | ??#???????????????????# % ##?#??????? | | ?????????????#?#??????# #?????????? | | ????????#?????????????# #?????????? | | ?#???????#?????#??????######T#"""#######?????????? | | ?#?????#?????#???????#?????###???????????????????? | | #????????????????????????????????????????????????? | | | | | | | +----------------------------------------------------+ Best States ------------- Heat Dissipation 37 Energy Generation 34 Energy Capacity 480 Matter Stores 300 Matter Capacity 300 Sight Range 22 Robot Scan Range 14 Terrain Scan Range 20 Terrain Scan Density 10 ECM Strength 2 Core Shielding 20 Evasion (%) 55 Targeting Accuracy 8 Recoil Reduction 2 Offensive Hacking 12 Item Schematics ----------------- None Robot Schematics ------------------ None Fabricated ------------ Nothing Repaired ---------- Nothing Alien Tech Used ----------------- None Achievements -------------- Prison Break Challenges ------------ None Game ------ Seed LegThermicSabre Manual? 0 Play Time 01:04:51 Cumulative 84.4 hours Start 2025.05.11 @ 22:28:25 End 2025.05.11 @ 23:32:16 Sessions 1 Manual Loads 0 Difficulty Rogue Special Mode None Game No. 71 Rogue 57 Adventurer 14 Explorer 0 Win Type - Total 0 Types 0/0/0/0/0/0/0/0/0/0 Lore% 29 Gallery% 36 Achievement% 29 Wizard Run 0 Options --------- Layout 1 ASCII 0 Keyboard 0 Movement Mouse Keybinds 0 Fullscreen 0 Font 20/Smallcaps Map View 50x35 Zoom Use 0% Tactical HUD 1 Map Filters NONE Filters NONE Steam 1 RUN: 63b022cd-3705-46b9-8ebf-e70f068ec648